bitfinex-derivatives/quotes_BTCF0:USTF0_20250713
["timestamp","ask_amount","ask_price","bid_price","bid_amount"]
[1752375829860,0.87875295,117710.0,117700.0,0.84716425]
[1752375830065,0.87875295,117710.0,117700.0,1.0614829]
[1752375832463,0.87875295,117710.0,117700.0,0.6328456]
[1752375832768,0.87875295,117710.0,117700.0,1.0614829]
[1752375844878,0.87875295,117710.0,117700.0,0.7006829]
[1752375845174,1.0930716,117710.0,117700.0,1.0614829]
[1752375845474,1.0930716,117710.0,117700.0,0.6328456]
[1752375845670,1.0930716,117710.0,117700.0,1.0614829]
[1752375848077,0.87875295,117710.0,117700.0,1.0614829]
[1752375848377,0.87875295,117710.0,117700.0,0.5306656]
[1752375848580,1.0930716,117710.0,117700.0,0.5306656]
[1752375848876,1.0930716,117710.0,117700.0,0.74498425]
[1752375851279,1.0930716,117710.0,117700.0,0.1698656]
[1752375851483,1.0930716,117710.0,117700.0,0.38418425]
[1752375862693,1.0930716,117710.0,117700.0,0.1698656]
[1752375862887,1.0930716,117710.0,117700.0,0.74498425]
[1752375865789,1.0930716,117710.0,117700.0,0.38418425]
[1752375865989,0.87875295,117710.0,117700.0,0.38418425]
[1752375866191,1.0930716,117710.0,117700.0,0.38418425]
[1752375869102,1.0930716,117710.0,117700.0,0.74498425]
[1752375870197,1.0930716,117710.0,117700.0,0.38418425]
[1752375872400,1.0930716,117710.0,117700.0,0.74498425]
[1752375872797,1.09306267,117710.0,117700.0,0.74498425]
[1752375872999,1.09306267,117710.0,117700.0,0.38418425]
[1752375874302,1.09306267,117710.0,117700.0,0.74498425]
[1752375874499,1.09306267,117710.0,117700.0,0.38418425]
[1752375874694,1.09306267,117710.0,117700.0,0.74498425]
[1752375877402,1.09306267,117710.0,117700.0,0.38418425]
[1752375878005,1.09306267,117710.0,117700.0,0.74498425]
[1752375878508,1.09306911,117710.0,117700.0,0.74498425]
[1752375881908,1.09306911,117710.0,117700.0,0.5306656]
[1752375882100,1.09306911,117710.0,117700.0,0.74498425]
[1752375884199,1.09307169,117710.0,117700.0,0.74498425]
[1752375885109,1.09307169,117710.0,117700.0,0.5306656]
[1752375885309,1.09307169,117710.0,117700.0,0.74498425]
[1752375886812,1.09307169,117710.0,117700.0,0.77543425]
[1752375888209,0.70766184,117710.0,117700.0,1.0588929]
[1752375888409,0.12466184,117710.0,117700.0,1.0588929]
[1752375888608,0.62725184,117710.0,117700.0,1.0588929]
[1752375888811,0.60363184,117710.0,117700.0,1.0588929]
[1752375889014,0.58496,117710.0,117700.0,1.0588929]
[1752375889220,0.60363055,117710.0,117700.0,1.0588929]
[1752375890120,0.62840055,117710.0,117700.0,1.0588929]
[1752375890310,0.67540055,117710.0,117700.0,1.0588929]
[1752375890516,0.67440055,117710.0,117700.0,1.0598929]
[1752375891318,0.67340055,117710.0,117700.0,1.0598929]
[1752375892219,0.67340055,117710.0,117700.0,1.4206929]
[1752375892420,0.09044055,117710.0,117700.0,1.4206929]
[1752375892621,0.67336055,117710.0,117700.0,1.4206929]
[1752375892920,0.67332055,117710.0,117700.0,1.4206929]
[1752375893820,0.09044055,117710.0,117700.0,1.4206929]
[1752375894016,0.67332055,117710.0,117700.0,1.4206929]
[1752375894216,0.09044055,117710.0,117700.0,1.4206929]
[1752375896523,0.09044055,117710.0,117700.0,0.6990929]
[1752375896727,0.09044055,117710.0,117700.0,1.4206929]
[1752375900930,0.01867055,117710.0,117700.0,1.63501155]
[1752375901230,0.02477,117720.0,117710.0,0.1698512]
[1752375901529,0.01864186,117720.0,117710.0,1.6415985]
[1752375902433,0.01964186,117720.0,117710.0,1.6415985]
[1752375904030,0.01964186,117720.0,117710.0,1.6425985]
[1752375905232,0.01964186,117720.0,117710.0,2.0033985]
[1752375906730,0.01864186,117720.0,117710.0,2.0033985]
[1752375910037,0.01864186,117720.0,117710.0,2.02093358]
[1752375910532,0.01864186,117720.0,117710.0,2.31213358]
[1752375912039,6e-08,117720.0,117710.0,2.31213358]
[1752375912241,0.0022,117730.0,117720.0,0.2263367]
[1752375912436,0.0022,117730.0,117720.0,1.061724]
[1752375913338,0.0032,117730.0,117720.0,1.061724]
[1752375913529,0.0032,117730.0,117720.0,1.13076673]
[1752375918645,0.02753,117730.0,117720.0,1.13076673]
[1752375922547,0.02753,117730.0,117720.0,0.70212943]
[1752375922748,0.02753,117730.0,117720.0,1.13076673]
[1752375923046,0.0773,117730.0,117720.0,1.13076673]
[1752375924145,0.09585053,117730.0,117720.0,1.13076673]
[1752375930250,0.09585053,117730.0,117720.0,0.76996673]
[1752375930452,0.09585053,117730.0,117720.0,1.49156673]
[1752375936255,0.09585053,117730.0,117720.0,0.76996673]
[1752375936460,0.09585053,117730.0,117720.0,1.49156673]
[1752375953175,0.09585212,117730.0,117720.0,1.49156673]
[1752375953562,0.02175212,117730.0,117720.0,1.49156673]
[1752375954065,0.02175212,117730.0,117720.0,1.70588538]
[1752375957775,0.06115589,117750.0,117740.0,0.2618079]
[1752375957977,0.06115589,117750.0,117740.0,2.78952385]
[1752375958172,0.06115589,117750.0,117740.0,2.5752052]
[1752375959369,0.06215589,117750.0,117740.0,2.5752052]
[1752375959572,0.06415589,117750.0,117740.0,2.5752052]
[1752375960777,0.06415589,117750.0,117740.0,2.78952385]
[1752375960971,0.003,117750.0,117740.0,2.78952385]
[1752375961773,0.003,117750.0,117740.0,2.5752052]
[1752375962368,0.003,117750.0,117740.0,2.78952385]
[1752375969686,0.02149755,117750.0,117740.0,2.78952385]
[1752375972387,0.5101397,117750.0,117740.0,1.16032655]
[1752375972690,0.5101397,117750.0,117740.0,1.74156655]
[1752375972891,0.5101397,117750.0,117740.0,1.9558852]
[1752375974090,0.5101397,117750.0,117740.0,1.9932852]
[1752375975593,0.3403462,117750.0,117740.0,1.9932852]
[1752375975793,0.3405462,117750.0,117740.0,1.9932852]
[1752375976093,0.12622755,117750.0,117740.0,1.9932852]
[1752375976996,0.29602105,117750.0,117740.0,1.9932852]
[1752375981092,0.29602105,117750.0,117740.0,1.77896655]
[1752375981298,0.29602105,117750.0,117740.0,1.9932852]
[1752375982198,0.29602105,117750.0,117740.0,1.6324852]
[1752375983899,0.29602105,117750.0,117740.0,1.2038479]
[1752375984199,0.29602105,117750.0,117740.0,1.6324852]
[1752375997414,0.29602105,117750.0,117740.0,0.6226079]
[1752375997714,0.29602105,117750.0,117740.0,0.43872655]
[1752375997715,0.5103397,117750.0,117740.0,0.43872655]
[1752375998621,0.5103397,117750.0,117740.0,0.2010179]
[1752375998821,0.5103397,117750.0,117740.0,0.41533655]
[1752376001824,0.5103397,117750.0,117740.0,0.44031655]
[1752376002423,0.57149559,117750.0,117740.0,0.44031655]
[1752376003725,0.48660409,117750.0,117730.0,0.3608]
[1752376003918,0.2013622,117730.0,117720.0,0.39420308]
[1752376004119,0.92723849,117730.0,117720.0,0.03232887]
[1752376004424,1.09712649,117730.0,117720.0,0.20216557]
[1752376004625,0.8660984,117730.0,117720.0,0.20216557]
[1752376005019,0.8660984,117730.0,117720.0,0.20316557]
[1752376005214,0.8660984,117730.0,117720.0,0.41748422]
[1752376006225,0.8660984,117730.0,117720.0,0.20416557]
[1752376006928,0.9376383,117730.0,117720.0,0.20416557]
[1752376008527,0.99877839,117730.0,117720.0,0.20416557]
[1752376009728,0.9376383,117730.0,117720.0,0.20416557]
[1752376010530,0.99865166,117730.0,117720.0,0.20416557]
[1752376010932,0.99865166,117730.0,117720.0,0.17353557]
[1752376012430,0.9376383,117730.0,117720.0,0.17353557]
[1752376019131,0.5768383,117730.0,117720.0,0.17353557]
[1752376019326,0.9376383,117730.0,117720.0,0.17353557]
[1752376023132,0.9376383,117730.0,117720.0,0.00369887]
[1752376023930,0.2723111,117710.0,117700.0,0.0002]
[1752376024136,0.2723255,117700.0,117690.0,0.2854419]
[1752376024336,0.9374816,117700.0,117690.0,0.2854419]
[1752376024934,0.9374816,117700.0,117690.0,0.1698739]
[1752376025125,0.65162305,117700.0,117690.0,0.1728739]
[1752376025328,0.9374816,117700.0,117690.0,0.1728739]
[1752376025530,0.9374816,117700.0,117690.0,0.003]
[1752376025835,0.9374816,117700.0,117690.0,0.1728799]
[1752376026537,1.0060487,117700.0,117690.0,0.1738799]
[1752376026735,0.9374816,117700.0,117690.0,0.1738799]
[1752376027131,0.9374816,117700.0,117690.0,0.1708799]
[1752376028138,1.5183616,117700.0,117690.0,0.1708799]
[1752376029940,1.49986405,117700.0,117690.0,0.1708799]
[1752376030140,1.51807571,117700.0,117690.0,0.1708799]
[1752376032032,1.51803571,117700.0,117690.0,0.1708799]
[1752376032232,0.29053716,117700.0,117690.0,0.2009299]
[1752376032437,0.87137716,117700.0,117690.0,0.54877845]
[1752376032638,0.70151166,117700.0,117690.0,0.90957845]
[1752376035637,0.87137716,117700.0,117690.0,0.90957845]
[1752376042245,0.70151166,117700.0,117690.0,0.90957845]
[1752376042849,0.87137716,117700.0,117690.0,0.90957845]
[1752376045350,0.87137716,117700.0,117690.0,0.54877845]
[1752376045552,0.87137716,117700.0,117690.0,0.90957845]
[1752376045851,0.29053716,117700.0,117690.0,0.90957845]
[1752376046151,0.87137716,117700.0,117690.0,0.90957845]
[1752376046952,0.29053716,117700.0,117690.0,0.90957845]
[1752376047251,0.87137716,117700.0,117690.0,0.90957845]
[1752376047956,0.87133716,117700.0,117690.0,0.90957845]
[1752376048156,0.87133716,117700.0,117690.0,0.87217845]
[1752376048452,0.93235052,117700.0,117690.0,0.87217845]
[1752376048857,1.14682145,117700.0,117690.0,0.80079083]
[1752376049350,0.56602145,117700.0,117690.0,0.80079083]
[1752376049550,1.14682145,117700.0,117690.0,0.80079083]
[1752376049753,1.14682145,117700.0,117690.0,0.43999083]
[1752376052346,0.50500809,117700.0,117690.0,0.43999083]
[1752376052551,1.08580809,117700.0,117690.0,0.43999083]
[1752376053656,1.08580809,117700.0,117690.0,0.80079083]
[1752376053861,0.50500809,117700.0,117690.0,0.77620083]
[1752376054155,1.08576809,117700.0,117690.0,0.77620083]
[1752376054358,1.08576809,117700.0,117690.0,0.41540083]
[1752376054850,1.08576809,117700.0,117690.0,0.77620083]
[1752376055358,1.08576809,117700.0,117690.0,0.80044083]
[1752376058656,0.87129716,117700.0,117690.0,0.80044083]
[1752376058955,1.08576809,117700.0,117690.0,0.80044083]
[1752376061459,0.87129716,117700.0,117690.0,0.80044083]
[1752376061658,1.08576809,117700.0,117690.0,0.5859699]
[1752376061958,1.08576809,117700.0,117690.0,0.80044083]
[1752376069764,1.08576809,117700.0,117690.0,0.5859699]
[1752376069962,1.08576809,117700.0,117690.0,0.80044083]
[1752376070665,0.29053716,117700.0,117690.0,0.80044083]
[1752376070861,0.70131166,117700.0,117690.0,1.05231176]
[1752376072269,0.70138372,117700.0,117690.0,1.05231176]
[1752376072769,0.12074372,117700.0,117690.0,2.21359176]
[1752376074276,0.12074372,117700.0,117690.0,1.7846499]
[1752376074573,0.12074372,117700.0,117690.0,2.21359176]
[1752376074761,0.12074372,117700.0,117690.0,2.07055238]
[1752376078774,0.12074372,117700.0,117690.0,1.7846499]
[1752376078980,0.12074372,117700.0,117690.0,2.07055238]
[1752376081175,0.29060922,117700.0,117690.0,2.07055238]
[1752376084175,0.12074372,117700.0,117690.0,2.07055238]
[1752376084676,0.29060922,117700.0,117690.0,2.07055238]
[1752376085478,0.29060922,117700.0,117690.0,1.7846499]
[1752376085676,0.29060922,117700.0,117690.0,2.07055238]
[1752376094380,0.29060922,117700.0,117690.0,1.7230099]
[1752376094773,0.50508808,117700.0,117690.0,1.93748876]
[1752376094974,0.50508808,117700.0,117690.0,1.96177876]
[1752376095181,0.50508808,117700.0,117690.0,1.7472999]
[1752376095385,0.50508808,117700.0,117690.0,1.96177876]
[1752376095980,0.50508808,117700.0,117690.0,1.99917876]
[1752376097184,0.12074372,117700.0,117690.0,1.99917876]
[1752376097380,0.33522258,117700.0,117690.0,1.99917876]
[1752376097678,0.29060922,117700.0,117690.0,1.99917876]
[1752376097983,0.50508808,117700.0,117690.0,1.99917876]
[1752376098186,0.29063156,117700.0,117690.0,1.99917876]
[1752376100081,0.50511042,117700.0,117690.0,1.99917876]
[1752376101084,0.29063156,117700.0,117690.0,1.99917876]
[1752376102183,0.29063156,117700.0,117690.0,1.63837876]
[1752376102383,0.29063156,117700.0,117690.0,1.99917876]
[1752376103083,0.50511042,117700.0,117690.0,1.99917876]
[1752376103884,0.50511042,117700.0,117690.0,1.7846999]
[1752376104183,0.50511042,117700.0,117690.0,1.99917876]
[1752376104384,0.33524492,117700.0,117690.0,1.99917876]
[1752376105192,0.33524717,117700.0,117690.0,1.99917876]
[1752376105687,0.12076831,117700.0,117690.0,1.99917876]
[1752376106790,0.29063381,117700.0,117690.0,1.99917876]
[1752376109188,0.50511267,117700.0,117690.0,1.99917876]
[1752376118403,0.50511267,117700.0,117690.0,1.7846999]
[1752376118697,0.50511267,117700.0,117690.0,1.99917876]
[1752376122897,0.50512206,117700.0,117690.0,1.99917876]
[1752376125198,0.2906432,117700.0,117690.0,1.63837876]
[1752376125403,0.50512206,117700.0,117690.0,1.99917876]
[1752376126204,0.50512206,117700.0,117690.0,1.7846999]
[1752376126403,0.50512206,117700.0,117690.0,1.99917876]
[1752376127006,0.50512206,117700.0,117690.0,1.7846999]
[1752376127302,0.50512206,117700.0,117690.0,1.99917876]
[1752376128603,0.2906432,117700.0,117690.0,1.99917876]
[1752376128798,0.50512206,117700.0,117690.0,1.99917876]
[1752376132005,0.50512206,117700.0,117690.0,1.7846999]
[1752376132206,0.50512206,117700.0,117690.0,1.99917876]
[1752376132207,0.48680436,117700.0,117690.0,1.99917876]
[1752376132406,0.48680436,117700.0,117690.0,1.7846999]
[1752376132606,0.48680436,117700.0,117690.0,1.99917876]
[1752376133404,0.50510836,117700.0,117690.0,1.99917876]
[1752376134208,0.48680436,117700.0,117690.0,1.99917876]
[1752376136104,0.50510827,117700.0,117690.0,1.99917876]
[1752376136510,0.48680436,117700.0,117690.0,1.99917876]
[1752376136707,0.50523429,117700.0,117690.0,1.99917876]
[1752376139006,0.12088993,117700.0,117690.0,1.99917876]
[1752376140308,0.01842993,117700.0,117690.0,2.21365762]
[1752376149616,0.06562993,117700.0,117690.0,2.21365762]
[1752376149813,0.25848583,117700.0,117690.0,1.99917876]
[1752376150012,0.50445469,117700.0,117690.0,1.99917876]
[1752376150313,0.50446182,117700.0,117690.0,1.7846999]
[1752376150514,0.50446182,117700.0,117690.0,1.99917876]
[1752376150713,0.71894068,117700.0,117690.0,1.7846999]
[1752376151023,0.50446182,117700.0,117690.0,1.63837876]
[1752376151210,0.50446182,117700.0,117690.0,1.99917876]
[1752376152315,0.50446182,117700.0,117690.0,1.63837876]
[1752376152519,0.50446182,117700.0,117690.0,1.99917876]
[1752376156922,0.50446182,117700.0,117690.0,0.83789876]
[1752376160924,0.28998296,117700.0,117690.0,0.83789876]
[1752376161125,0.50446182,117700.0,117690.0,0.83789876]
[1752376166541,0.50446182,117700.0,117690.0,0.6234199]
[1752376166732,0.50446182,117700.0,117690.0,0.83789876]
[1752376174831,0.50446182,117700.0,117690.0,0.47709876]
[1752376175130,0.12011706,117700.0,117690.0,0.83789876]
[1752376175337,0.01843706,117700.0,117690.0,1.05237762]
[1752376184242,0.18830266,117700.0,117690.0,1.05237762]
[1752376184544,0.1883563,117700.0,117690.0,1.05237762]
[1752376185442,0.1883563,117700.0,117690.0,1.41317762]
[1752376186442,0.1883563,117700.0,117690.0,0.69157762]
[1752376186742,0.1883563,117700.0,117690.0,1.41317762]
[1752376187442,0.2348563,117700.0,117690.0,1.41317762]
[1752376196156,0.2348563,117700.0,117690.0,0.69157762]
[1752376196356,0.2348563,117700.0,117690.0,1.41317762]
[1752376198260,0.0649907,117700.0,117690.0,1.41317762]
[1752376198449,0.2348562,117700.0,117690.0,1.41317762]
[1752376200063,0.0649907,117700.0,117690.0,1.41317762]
[1752376200563,0.2348562,117700.0,117690.0,1.41317762]
[1752376201463,0.0649907,117700.0,117690.0,1.41317762]
[1752376203166,0.2348562,117700.0,117690.0,1.41317762]
[1752376204162,0.2585762,117700.0,117690.0,1.41317762]
[1752376204362,0.0887107,117700.0,117690.0,1.41317762]
[1752376210362,0.2910962,117700.0,117690.0,0.9842199]
[1752376210565,0.72005392,117700.0,117690.0,0.7226]
[1752376210764,1.66033392,117700.0,117690.0,0.001]
[1752376211069,1.66033392,117700.0,117690.0,0.17088]
[1752376212268,1.72152199,117700.0,117690.0,0.17088]
[1752376213269,1.72196031,117700.0,117690.0,0.17088]
[1752376215370,1.72196031,117700.0,117690.0,0.001]
[1752376216072,1.72196031,117700.0,117690.0,0.17088]
[1752376216274,1.29300259,117700.0,117690.0,0.17088]
[1752376216570,1.72196031,117700.0,117690.0,0.17088]
[1752376218977,1.70303129,117700.0,117690.0,0.17088]
[1752376219177,1.72194206,117700.0,117690.0,0.17088]
[1752376221578,1.72194206,117700.0,117690.0,0.001]
[1752376224382,1.66075399,117700.0,117690.0,0.001]
[1752376226078,1.66075399,117700.0,117690.0,0.17088]
[1752376226785,1.66075399,117700.0,117690.0,0.001]
[1752376229979,1.72194206,117700.0,117690.0,0.001]
[1752376232584,0.27131,117690.0,117680.0,0.00169945]
[1752376232789,0.92654258,117690.0,117680.0,0.00169945]
[1752376232984,0.90763181,117690.0,117680.0,0.00169945]
[1752376233284,1.1412564,117690.0,117680.0,0.00169945]
[1752376234487,0.92677754,117690.0,117680.0,0.17159385]
[1752376238189,0.92977754,117690.0,117680.0,0.17159385]
[1752376238389,0.93077754,117690.0,117680.0,0.17159385]
[1752376240189,0.93077754,117690.0,117680.0,0.00169945]
[1752376245087,1.1452564,117690.0,117680.0,0.00169945]
[1752376247197,0.7844564,117690.0,117680.0,0.00169945]
[1752376247400,1.1452564,117690.0,117680.0,0.00169945]
[1752376255905,1.1452564,117690.0,117680.0,0.17159385]
[1752376256112,0.93077754,117690.0,117680.0,0.17159385]
[1752376256403,0.56997754,117690.0,117680.0,0.74687271]
[1752376256706,1.14913754,117690.0,117680.0,0.44059271]
[1752376257607,1.44889459,117690.0,117680.0,0.41648271]
[1752376263011,1.50993754,117690.0,117680.0,0.41648271]
[1752376263517,1.44889459,117690.0,117680.0,0.41648271]
[1752376265311,1.44889459,117690.0,117680.0,0.20200385]
[1752376265511,1.44889459,117690.0,117680.0,0.41648271]
[1752376266510,1.44881459,117690.0,117680.0,0.41648271]
[1752376269316,1.23433573,117690.0,117680.0,0.41648271]
[1752376269522,1.44881459,117690.0,117680.0,0.41648271]
[1752376271824,1.08801459,117690.0,117680.0,0.41648271]
[1752376272019,1.44881459,117690.0,117680.0,0.41648271]
[1752376273025,1.50998311,117690.0,117680.0,0.41648271]
[1752376275923,1.50998311,117690.0,117680.0,0.17159385]
[1752376276926,1.44881459,117690.0,117680.0,0.17159385]
[1752376282134,1.50998311,117690.0,117680.0,0.17159385]
[1752376283835,1.14918311,117690.0,117680.0,0.17159385]
[1752376284029,1.50998311,117690.0,117680.0,0.17159385]
[1752376286531,1.14918311,117690.0,117680.0,0.17159385]
[1752376287532,1.50998311,117690.0,117680.0,0.17159385]
[1752376289638,1.29550425,117690.0,117680.0,0.17159385]
[1752376289837,1.50998311,117690.0,117680.0,0.17159385]
[1752376294235,1.14918311,117690.0,117680.0,0.17159385]
[1752376294438,1.50998311,117690.0,117680.0,0.17159385]
[1752376294841,1.14918311,117690.0,117680.0,0.17159385]
[1752376295839,0.57010311,117690.0,117680.0,0.17159385]
[1752376296039,1.14886311,117690.0,117680.0,0.17159385]
[1752376296236,1.14886311,117690.0,117680.0,0.38607271]
[1752376297638,1.50966311,117690.0,117680.0,0.38607271]
[1752376298938,1.14886311,117690.0,117680.0,0.38607271]
[1752376299839,1.50966311,117690.0,117680.0,0.38607271]
[1752376301843,1.14886311,117690.0,117680.0,0.38607271]
[1752376302041,1.50966311,117690.0,117680.0,0.38607271]
[1752376303144,1.50966311,117690.0,117680.0,0.17159385]
[1752376303343,1.50966311,117690.0,117680.0,0.38607271]
[1752376303641,1.52497968,117690.0,117680.0,0.38607271]
[1752376304142,1.52497968,117690.0,117680.0,0.17159385]
[1752376305043,1.52497968,117690.0,117680.0,0.00169945]
[1752376305543,1.52497968,117690.0,117680.0,0.17159385]
[1752376306743,1.52497968,117690.0,117680.0,0.00169945]
[1752376307139,1.73945854,117690.0,117680.0,0.00169945]
[1752376313550,1.80065788,117690.0,117680.0,0.00169945]
[1752376313752,1.72417279,117690.0,117680.0,0.00169945]
[1752376316452,1.66297345,117690.0,117680.0,0.00169945]
[1752376320259,1.23401573,117690.0,117680.0,0.00169945]
[1752376320460,1.66297345,117690.0,117680.0,0.00169945]
[1752376320864,1.44849459,117690.0,117680.0,0.00169945]
[1752376321968,1.50968585,117690.0,117680.0,0.00169945]
[1752376322763,1.29496699,117690.0,117680.0,0.17159385]
[1752376322959,1.44825459,117690.0,117680.0,0.17159385]
[1752376323364,1.50944425,117690.0,117680.0,0.00169945]
[1752376324355,1.50944426,117690.0,117680.0,0.00169945]
[1752376328268,1.50944426,117690.0,117680.0,0.17159385]
[1752376328463,1.50949087,117690.0,117680.0,0.17159385]
[1752376329368,0.93097087,117690.0,117680.0,0.17159385]
[1752376329569,0.57017087,117690.0,117680.0,0.17159385]
[1752376329772,1.14861087,117690.0,117680.0,0.17159385]
[1752376330068,0.57017087,117690.0,117680.0,0.17159385]
[1752376330271,1.50941087,117690.0,117680.0,0.17159385]
[1752376330573,1.4482212,117690.0,117680.0,0.17159385]
[1752376331071,1.50941141,117690.0,117680.0,0.17159385]
[1752376331266,1.14861141,117690.0,117680.0,0.17159385]
[1752376331963,0.57017141,117690.0,117680.0,0.17159385]
[1752376332165,1.14861141,117690.0,117680.0,0.17159385]
[1752376332572,1.50941141,117690.0,117680.0,0.17159385]
[1752376333172,1.4482212,117690.0,117680.0,0.17159385]
[1752376334865,1.0874212,117690.0,117680.0,0.17159385]
[1752376335068,1.14861404,117690.0,117680.0,0.17159385]
[1752376335976,1.50941404,117690.0,117680.0,0.17159385]
[1752376336168,1.4482212,117690.0,117680.0,0.17159385]
[1752376338171,1.50941554,117690.0,117680.0,0.17159385]
[1752376338364,1.4482212,117690.0,117680.0,0.17159385]
[1752376339577,1.50941752,117690.0,117680.0,0.17159385]
[1752376339780,1.4482212,117690.0,117680.0,0.17159385]
[1752376342378,1.0874212,117690.0,117680.0,0.17159385]
[1752376342577,1.4482212,117690.0,117680.0,0.17159385]
[1752376343277,1.0874212,117690.0,117680.0,0.17159385]
[1752376343477,1.4482212,117690.0,117680.0,0.17159385]
[1752376344181,1.0874212,117690.0,117680.0,0.17159385]
[1752376344783,1.4482212,117690.0,117680.0,0.17159385]
[1752376345683,1.0874212,117690.0,117680.0,0.17159385]
[1752376345885,1.4482212,117690.0,117680.0,0.17159385]
[1752376346084,1.0874212,117690.0,117680.0,0.17159385]
[1752376346882,1.4482212,117690.0,117680.0,0.17159385]
[1752376348088,1.0874212,117690.0,117680.0,0.17159385]
[1752376349284,1.4482212,117690.0,117680.0,0.17159385]
[1752376350385,1.0874212,117690.0,117680.0,0.17159385]
[1752376350780,1.4482212,117690.0,117680.0,0.17159385]
[1752376351286,1.0874212,117690.0,117680.0,0.17159385]
[1752376352488,1.4482212,117690.0,117680.0,0.17159385]
[1752376353389,1.0874212,117690.0,117680.0,0.17159385]
[1752376353592,1.4482212,117690.0,117680.0,0.17159385]
[1752376353889,1.52470629,117690.0,117680.0,0.17159385]
[1752376356187,0.94626629,117690.0,117680.0,0.17159385]
[1752376356387,1.50531395,117690.0,117680.0,0.41821271]
[1752376356688,1.52457805,117690.0,117680.0,0.41821271]
[1752376358597,1.52457805,117690.0,117680.0,0.44139271]
[1752376358893,1.16377805,117690.0,117680.0,0.41821271]
[1752376360292,1.08729296,117690.0,117680.0,0.41821271]
[1752376361688,1.08729296,117690.0,117680.0,0.20373385]
[1752376361985,1.08729296,117690.0,117680.0,0.41821271]
[1752376363698,1.14839535,117690.0,117680.0,0.41821271]
[1752376364393,0.57023535,117690.0,117680.0,0.41821271]
[1752376364594,1.14839535,117690.0,117680.0,0.83959271]
[1752376365091,1.14839535,117690.0,117680.0,0.80219271]
[1752376368699,1.14839535,117690.0,117680.0,0.58771385]
[1752376368899,1.14839535,117690.0,117680.0,0.80219271]
[1752376371199,1.12913125,117690.0,117680.0,0.80219271]
[1752376371503,1.14838379,117690.0,117680.0,0.80219271]
[1752376372504,1.14838379,117690.0,117680.0,0.44139271]
[1752376372702,1.14838379,117690.0,117680.0,0.80219271]
[1752376373200,1.14838379,117690.0,117680.0,0.44139271]
[1752376373504,1.14838379,117690.0,117680.0,0.80219271]
[1752376376403,1.14838379,117690.0,117680.0,0.44139271]
[1752376376705,1.14838379,117690.0,117680.0,0.80219271]
[1752376385014,1.0872014,117690.0,117680.0,0.80219271]
[1752376385415,1.0872014,117690.0,117680.0,0.44139271]
[1752376385606,1.14838379,117690.0,117680.0,0.44139271]
[1752376385806,1.0872014,117690.0,117680.0,0.44139271]
[1752376386005,1.14838379,117690.0,117680.0,0.44139271]
[1752376386416,1.14838379,117690.0,117680.0,0.80219271]
[1752376386617,1.14838379,117690.0,117680.0,0.77901271]
[1752376387013,1.14838379,117690.0,117680.0,0.41821271]
[1752376387221,1.14838379,117690.0,117680.0,0.77901271]
[1752376387408,1.14838379,117690.0,117680.0,0.41821271]
[1752376397624,1.14838379,117690.0,117680.0,0.77901271]
[1752376398127,1.14838379,117690.0,117680.0,0.41821271]
[1752376398626,1.14806379,117690.0,117680.0,0.77901271]
[1752376400427,1.14806379,117690.0,117680.0,0.41821271]
[1752376401828,1.14806379,117690.0,117680.0,0.20373385]
[1752376402031,1.14806379,117690.0,117680.0,0.41821271]
[1752376402631,0.93358493,117690.0,117680.0,0.41821271]
[1752376402825,1.14806379,117690.0,117680.0,0.41821271]
[1752376404830,1.14789062,117690.0,117680.0,0.41821271]
[1752376405732,1.14789062,117690.0,117680.0,0.77901271]
[1752376405931,1.14789062,117690.0,117680.0,0.41821271]
[1752376406431,1.14789062,117690.0,117680.0,0.77901271]
[1752376407030,1.14789062,117690.0,117680.0,0.41821271]
[1752376407930,1.14789062,117690.0,117680.0,0.77901271]
[1752376408933,1.14789062,117690.0,117680.0,0.41821271]
[1752376418138,1.14789062,117690.0,117680.0,0.77901271]
[1752376418538,1.14789062,117690.0,117680.0,0.41821271]
[1752376418738,1.14789062,117690.0,117680.0,0.77901271]
[1752376419539,1.14789062,117690.0,117680.0,0.41821271]
[1752376419734,1.14789062,117690.0,117680.0,0.77901271]
[1752376420137,1.14789062,117690.0,117680.0,0.41821271]
[1752376420539,1.14789062,117690.0,117680.0,0.77901271]
[1752376421033,1.14789062,117690.0,117680.0,0.41821271]
[1752376421334,1.14789062,117690.0,117680.0,0.77901271]
[1752376421532,1.14789062,117690.0,117680.0,0.41821271]
[1752376421733,1.14789062,117690.0,117680.0,0.77901271]
[1752376423442,1.14789062,117690.0,117680.0,0.41821271]
[1752376423641,1.14789062,117690.0,117680.0,0.77901271]
[1752376424142,1.14789062,117690.0,117680.0,0.41821271]
[1752376425838,1.14789062,117690.0,117680.0,0.77901271]
[1752376426844,1.14789062,117690.0,117680.0,0.41821271]
[1752376427143,1.14789062,117690.0,117680.0,0.77901271]
[1752376428543,1.14789062,117690.0,117680.0,0.41821271]
[1752376434550,1.12532062,117690.0,117680.0,0.41821271]
[1752376436746,1.14876062,117690.0,117680.0,0.41821271]
[1752376442954,1.14876062,117690.0,117680.0,0.20373385]
[1752376443156,1.14876062,117690.0,117680.0,0.41821271]
[1752376453461,0.93428176,117690.0,117680.0,0.41821271]
[1752376453660,1.14876062,117690.0,117680.0,0.41821271]
[1752376460165,1.14876062,117690.0,117680.0,0.20373385]
[1752376460364,1.14876062,117690.0,117680.0,0.17159385]
[1752376461669,1.14876062,117690.0,117680.0,0.17159375]
[1752376470488,1.14876062,117690.0,117680.0,0.00169945]
[1752376470687,1.14876062,117690.0,117680.0,0.17159375]
[1752376473090,1.14876062,117690.0,117680.0,0.00169945]
[1752376473389,1.72403948,117690.0,117680.0,0.00169945]
[1752376474290,1.70496011,117690.0,117680.0,0.00169945]
[1752376474487,1.64377772,117690.0,117680.0,0.00169945]
[1752376475487,1.72405387,117690.0,117680.0,0.00169945]
[1752376475690,1.50957501,117690.0,117680.0,0.00169945]
[1752376482399,1.14877501,117690.0,117680.0,0.00169945]
[1752376482601,1.50957501,117690.0,117680.0,0.00169945]
[1752376483602,1.52487183,117690.0,117680.0,0.00169945]
[1752376485104,1.52487183,117690.0,117680.0,0.17159385]
[1752376485499,1.52487183,117690.0,117680.0,0.12568926]
[1752376485799,0.1698943,117680.0,117670.0,0.52971353]
[1752376486006,0.56710006,117680.0,117670.0,0.52971353]
[1752376486907,0.56710006,117680.0,117670.0,0.2973289]
[1752376487103,0.56810006,117680.0,117670.0,0.51180776]
[1752376487504,0.50691202,117680.0,117670.0,0.51180776]
[1752376488807,0.50691202,117680.0,117670.0,0.54368776]
[1752376490406,0.56808792,117680.0,117670.0,0.54368776]
[1752376500415,0.56808792,117680.0,117670.0,0.90448776]
[1752376501525,0.56808792,117680.0,117670.0,0.92839776]
[1752376502221,0.50691202,117680.0,117670.0,0.92839776]
[1752376505821,0.50691202,117680.0,117670.0,0.87260776]
[1752376506023,0.72139088,117680.0,117670.0,0.6156518]
[1752376506728,0.78256678,117680.0,117670.0,0.6156518]
[1752376507834,0.72139088,117680.0,117670.0,0.6156518]
[1752376508934,0.78256678,117680.0,117670.0,0.6156518]
[1752376509733,0.78256678,117680.0,117670.0,0.2548518]
[1752376509936,0.35360906,117680.0,117670.0,0.2548518]
[1752376510136,0.78256678,117680.0,117670.0,0.46933066]
[1752376510739,0.72139088,117680.0,117670.0,0.46933066]